fUSD/lending_fUSD_20250629
["ID","MTS","AMOUNT","RATE_DAILY","PERIOD"]
[368592634,1751220640029,-490.0,0.00021917,2]
[368592636,1751220640038,-155.095351,0.00021917,2]
[368592638,1751220640047,-162.617548,0.00021917,2]
[368592640,1751220640056,-694.9,0.00021917,2]
[368592642,1751220640065,-490.0,0.00021917,2]
[368592644,1751220640074,-151.0,0.00021917,2]
[368592646,1751220640083,-151.0,0.00021917,2]
[368592648,1751220640092,-151.0,0.00021917,2]
[368592650,1751220640101,-503.07,0.00021917,2]
[368592652,1751220640110,-151.0,0.00021917,2]
[368592654,1751220640120,-438.40124712,0.00021917,2]
[368592656,1751220640129,-151.0,0.00021917,2]
[368592658,1751220640138,-476.82891858,0.00021917,2]
[368592660,1751220640147,-158.594384,0.00021917,2]
[368592662,1751220640157,-490.0,0.00021917,2]
[368592664,1751220640166,-772.27,0.00021917,2]
[368592666,1751220640175,-490.0,0.00021917,2]
[368592668,1751220640184,-490.0,0.00021917,2]
[368592670,1751220640194,-151.0,0.00021917,2]
[368592672,1751220640203,-151.0,0.00021917,2]
[368592674,1751220640212,-151.0,0.00021917,2]
[368592676,1751220640222,-151.0,0.00021917,2]
[368592678,1751220640231,-151.0,0.00021917,2]
[368592680,1751220640240,-155.888235,0.00021917,2]
[368592681,1751220640250,-232.913478,0.00021917,2]
[368592683,1751220640259,-856.26,0.00021917,2]
[368592685,1751220640268,-537.5,0.00021917,2]
[368592687,1751220640277,-250.92682943,0.00021917,2]
[368592689,1751220640286,-490.0,0.00021917,2]
[368592691,1751220640295,-155.053861,0.00021917,2]
[368592693,1751220640304,-490.0,0.00021917,2]
[368592695,1751220640314,-490.0,0.00021917,2]
[368592698,1751220640323,-490.0,0.00021917,2]
[368592700,1751220640333,-151.95935,0.00021917,2]
[368592702,1751220640342,-490.0,0.00021917,2]
[368592704,1751220640352,-490.0,0.00021917,2]
[368592706,1751220640361,-490.0,0.00021917,2]
[368592708,1751220640372,-490.0,0.00021917,2]
[368592709,1751220640384,-490.0,0.00021917,2]
[368592725,1751220640662,-601.24,0.00021917,2]
[368592727,1751220640671,-490.0,0.00021917,2]
[368592729,1751220640680,-490.0,0.00021917,2]
[368592731,1751220640689,-490.0,0.00021917,2]
[368592733,1751220640698,-490.0,0.00021917,2]
[368592734,1751220640711,-186.45885594,0.00021917,2]
[368592736,1751220640720,-490.0,0.00021917,2]
[368592738,1751220640729,-490.0,0.00021917,2]
[368592740,1751220640738,-490.0,0.00021917,2]
[368592742,1751220640747,-490.0,0.00021917,2]
[368592744,1751220640755,-490.0,0.00021917,2]
[368592746,1751220640765,-490.0,0.00021917,2]
[368592748,1751220640774,-490.0,0.00021917,2]
[368592750,1751220640783,-490.0,0.00021917,2]
[368592752,1751220640792,-490.0,0.00021917,2]
[368592754,1751220640801,-490.0,0.00021917,2]
[368592756,1751220640810,-490.0,0.00021917,2]
[368592758,1751220640819,-490.0,0.00021917,2]
[368592760,1751220640829,-490.0,0.00021917,2]
[368592762,1751220640839,-490.0,0.00021917,2]
[368592764,1751220640848,-490.0,0.00021917,2]
[368592766,1751220640858,-490.0,0.00021917,2]
[368592768,1751220640867,-490.0,0.00021917,2]
[368592770,1751220640877,-490.0,0.00021917,2]
[368592772,1751220640886,-500.0,0.00021917,2]
[368592774,1751220640895,-490.0,0.00021917,2]
[368592776,1751220640904,-500.0,0.00021917,2]
[368592778,1751220640913,-513.42,0.00021917,2]
[368592780,1751220640923,-1378.198103,0.00021917,2]
[368592782,1751220640932,-490.0,0.00021917,2]
[368592784,1751220640942,-820.26,0.00021917,2]
[368592786,1751220640951,-490.0,0.00021917,2]
[368592788,1751220640961,-616.06,0.00021917,2]
[368592790,1751220640970,-188.87261783,0.00021917,2]
[368592792,1751220640979,-490.0,0.00021917,2]
[368592794,1751220640988,-151.0,0.00021917,2]
[368592796,1751220640997,-151.571315,0.00021917,2]
[368592798,1751220641006,-504.5,0.00021917,2]
[368592800,1751220641015,-490.0,0.00021917,2]
[368592802,1751220641024,-1345.08,0.00021917,2]
[368592804,1751220641033,-490.0,0.00021917,2]
[368592806,1751220641042,-2952.930795,0.00021917,2]
[368592808,1751220641052,-490.0,0.00021917,2]
[368592810,1751220641061,-501.48555712,0.00021917,2]
[368592812,1751220641070,-491.61318806,0.00021917,2]
[368592814,1751220641079,-880.78,0.00021917,2]
[368592816,1751220641088,-500.0,0.00021917,2]
[368592818,1751220641098,-505.55895388,0.00021917,2]
[368592820,1751220641108,-490.0,0.00021917,2]
[368592822,1751220641117,-490.0,0.00021917,2]
[368592824,1751220641127,-283.71875194,0.00021917,2]
[368592826,1751220641136,-518.99,0.00021917,2]
[368592828,1751220641145,-2383.87,0.00021917,2]
[368592830,1751220641154,-490.0,0.00021917,2]
[368592832,1751220641163,-490.0,0.00021917,2]
[368592834,1751220641172,-1328.41983,0.00021917,2]
[368592836,1751220641181,-490.0,0.00021917,2]
[368592838,1751220641190,-1328.41983,0.00021917,2]
[368592840,1751220641199,-1328.41983,0.00021917,2]
[368592842,1751220641208,-490.0,0.00021917,2]
[368592844,1751220641218,-1029.84,0.00021917,2]
[368592846,1751220641227,-1328.41983,0.00021917,2]
[368592848,1751220641236,-1328.41983,0.00021917,2]
[368592850,1751220641246,-490.0,0.00021917,2]
[368592852,1751220641255,-151.0,0.00021917,2]
[368592854,1751220641263,-151.0,0.00021917,2]
[368592856,1751220641273,-258.691696,0.00021917,2]
[368592858,1751220641283,-490.0,0.00021917,2]
[368592860,1751220641292,-334.85475546,0.00021917,2]
[368592862,1751220641301,-490.0,0.00021917,2]
[368592864,1751220641310,-490.0,0.00021917,2]
[368592866,1751220641319,-490.0,0.00021917,2]
[368592868,1751220641328,-1328.41983,0.00021917,2]
[368592870,1751220641337,-1328.41983,0.00021917,2]
[368592872,1751220641346,-490.0,0.00021917,2]
[368592874,1751220641355,-1328.41983,0.00021917,2]
[368592876,1751220641364,-1328.41983,0.00021917,2]
[368592878,1751220641373,-490.0,0.00021917,2]
[368592880,1751220641382,-1328.41983,0.00021917,2]
[368592882,1751220641392,-490.0,0.00021917,2]
[368592884,1751220641407,-490.0,0.00021917,2]
[368592886,1751220641416,-495.43126155,0.00021917,2]
[368592888,1751220641425,-574.42,0.00021917,2]
[368592890,1751220641435,-1015.37,0.00021917,2]
[368592892,1751220641444,-490.0,0.00021917,2]
[368592894,1751220641453,-490.0,0.00021917,2]
[368592896,1751220641462,-506.70491406,0.00021917,2]
[368592898,1751220641471,-1379.68,0.00021917,2]
[368592900,1751220641484,-529.16609247,0.00021917,2]
[368592902,1751220641494,-490.0,0.00021917,2]
[368592904,1751220641507,-490.0,0.00021917,2]
[368592906,1751220641516,-490.0,0.00021917,2]
[368592908,1751220641525,-601.96,0.00021917,2]
[368592910,1751220641534,-525.24,0.00021917,2]
[368592912,1751220641544,-737.53,0.00021917,2]
[368592914,1751220641553,-490.0,0.00021917,2]
[368592916,1751220641563,-490.0,0.00021917,2]
[368592918,1751220641572,-604.30718522,0.00021917,2]
[368592919,1751220641581,-490.0,0.00021917,2]
[368592921,1751220641591,-490.0,0.00021917,2]
[368592923,1751220641600,-490.0,0.00021917,2]
[368592925,1751220641609,-527.39,0.00021917,2]
[368592927,1751220641619,-490.0,0.00021917,2]
[368592929,1751220641628,-490.0,0.00021917,2]
[368592931,1751220641637,-667.6,0.00021917,2]
[368592933,1751220641647,-490.0,0.00021917,2]
[368592935,1751220641656,-490.0,0.00021917,2]
[368592938,1751220641665,-510.0,0.00021917,2]
[368592940,1751220641674,-490.0,0.00021917,2]
[368592942,1751220641683,-336.49364716,0.00021917,2]
[368592944,1751220641692,-490.0,0.00021917,2]
[368592945,1751220641702,-490.0,0.00021917,2]
[368592948,1751220641713,-500.0,0.00021917,2]
[368592949,1751220641722,-914.81,0.00021917,2]
[368592952,1751220641732,-151.0,0.00021917,2]
[368592953,1751220641741,-1901.32,0.00021917,2]
[368592955,1751220641750,-154.093542,0.00021917,2]
[368592957,1751220641760,-490.0,0.00021917,2]
[368592959,1751220641769,-490.0,0.00021917,2]
[368592961,1751220641779,-575.06,0.00021917,2]
[368592964,1751220641788,-722.43,0.00021917,2]
[368592965,1751220641798,-490.0,0.00021917,2]
[368592968,1751220641808,-294.00221367,0.00021917,2]
[368592970,1751220641818,-195.22118237,0.00021917,2]
[368592972,1751220641827,-1256.34,0.00021917,2]
[368592974,1751220641836,-490.0,0.00021917,2]
[368592976,1751220641845,-151.0,0.00021917,2]
[368592978,1751220641854,-151.0,0.00021917,2]
[368592980,1751220641863,-151.0,0.00021917,2]
[368592982,1751220641873,-151.0,0.00021917,2]
[368592984,1751220641882,-151.0,0.00021917,2]
[368592985,1751220641891,-492.1847077,0.00021917,2]
[368592987,1751220641900,-490.0,0.00021917,2]
[368592989,1751220641909,-151.0,0.00021917,2]
[368592991,1751220641919,-490.0,0.00021917,2]
[368592993,1751220641928,-151.0,0.00021917,2]
[368592995,1751220641938,-271.052149,0.00021917,2]
[368592997,1751220641947,-490.0,0.00021917,2]
[368592999,1751220641956,-1378.89,0.00021917,2]
[368593001,1751220641966,-490.0,0.00021917,2]
[368593003,1751220641975,-151.0,0.00021917,2]
[368593005,1751220641984,-490.0,0.00021917,2]
[368593007,1751220641994,-490.0,0.00021917,2]
[368593010,1751220642005,-490.0,0.00021917,2]
[368593012,1751220642014,-1129.62,0.00021917,2]
[368593014,1751220642024,-525.52,0.00021917,2]
[368593016,1751220642034,-490.0,0.00021917,2]
[368593018,1751220642043,-490.0,0.00021917,2]
[368593019,1751220642052,-151.0,0.00021917,2]
[368593021,1751220642062,-151.0,0.00021917,2]
[368593023,1751220642071,-153.307269,0.00021917,2]
[368593025,1751220642080,-490.0,0.00021917,2]
[368593027,1751220642089,-490.0,0.00021917,2]
[368593029,1751220642099,-490.0,0.00021917,2]
[368593031,1751220642109,-490.0,0.00021917,2]
[368593033,1751220642119,-490.0,0.00021917,2]
[368593035,1751220642129,-273.91736845,0.00021917,2]
[368593038,1751220642138,-490.0,0.00021917,2]
[368593040,1751220642148,-150.0,0.00021917,2]
[368593042,1751220642159,-330.44831067,0.00021917,2]
[368593043,1751220642170,-150.0,0.00021917,2]
[368593045,1751220642179,-150.0,0.00021917,2]
[368593047,1751220642189,-150.0,0.00021917,2]
[368593050,1751220642199,-151.0,0.00021917,2]
[368593051,1751220642209,-150.0,0.00021917,2]
[368593053,1751220642218,-154.436506,0.00021917,2]
[368593055,1751220642227,-490.0,0.00021917,2]
[368593057,1751220642236,-150.0,0.00021917,2]
[368593059,1751220642245,-490.0,0.00021917,2]
[368593061,1751220642254,-490.0,0.00021917,2]
[368593063,1751220642264,-151.0,0.00021917,2]
[368593065,1751220642274,-490.0,0.00021917,2]
[368593067,1751220642283,-490.0,0.00021917,2]
[368593069,1751220642293,-490.0,0.00021917,2]
[368593071,1751220642302,-500.0,0.00021917,2]
[368593074,1751220642312,-490.0,0.00021917,2]
[368593075,1751220642321,-1708.88,0.00021917,2]
[368593077,1751220642330,-593.86,0.00021917,2]
[368593079,1751220642340,-490.0,0.00021917,2]
[368593082,1751220642349,-490.0,0.00021917,2]
[368593084,1751220642360,-151.0,0.00021917,2]
[368593085,1751220642369,-151.0,0.00021917,2]
[368593087,1751220642378,-151.0,0.00021917,2]
[368593089,1751220642387,-151.0,0.00021917,2]
[368593091,1751220642397,-151.0,0.00021917,2]
[368593093,1751220642407,-490.0,0.00021917,2]
[368593096,1751220642418,-490.0,0.00021917,2]
[368593097,1751220642428,-714.43,0.00021917,2]
[368593099,1751220642437,-490.0,0.00021917,2]
[368593101,1751220642446,-633.4028169,0.00021917,2]
[368593103,1751220642456,-681.33,0.00021917,2]
[368593105,1751220642465,-490.0,0.00021917,2]
[368593107,1751220642474,-494.8,0.00021917,2]
[368593109,1751220642484,-490.0,0.00021917,2]
[368593111,1751220642495,-151.484049,0.00021917,2]
[368593113,1751220642505,-490.0,0.00021917,2]
[368593115,1751220642514,-490.0,0.00021917,2]
[368593118,1751220642525,-490.0,0.00021917,2]
[368593119,1751220642535,-916.23,0.00021917,2]
[368593121,1751220642546,-490.0,0.00021917,2]
[368593123,1751220642556,-490.0,0.00021917,2]
[368593126,1751220642565,-594.57,0.00021917,2]
[368593129,1751220642575,-151.0,0.00021917,2]
[368593131,1751220642585,-490.0,0.00021917,2]
[368593133,1751220642594,-490.0,0.00021917,2]
[368593135,1751220642603,-740.45,0.00021917,2]
[368593138,1751220642612,-490.0,0.00021917,2]
[368593141,1751220642622,-490.0,0.00021917,2]
[368593144,1751220642631,-490.0,0.00021917,2]
[368593147,1751220642641,-490.0,0.00021917,2]
[368593149,1751220642650,-151.0,0.00021917,2]
[368593151,1751220642660,-151.0,0.00021917,2]
[368593153,1751220642670,-152.394246,0.00021917,2]
[368593155,1751220642680,-490.0,0.00021917,2]
[368593157,1751220642689,-490.0,0.00021917,2]
[368593159,1751220642698,-490.0,0.00021917,2]
[368593161,1751220642708,-490.0,0.00021917,2]
[368593163,1751220642717,-490.0,0.00021917,2]
[368593165,1751220642726,-490.0,0.00021917,2]
[368593167,1751220642735,-490.0,0.00021917,2]
[368593169,1751220642745,-490.0,0.00021917,2]
[368593171,1751220642755,-490.0,0.00021917,2]
[368593173,1751220642764,-884.42,0.00021917,2]
[368593175,1751220642774,-1542.31,0.00021917,2]
[368593177,1751220642783,-647.45,0.00021917,2]
[368593179,1751220642793,-884.15,0.00021917,2]
[368593181,1751220642802,-151.0,0.00021917,2]
[368593183,1751220642811,-154.81563,0.00021917,2]
[368593185,1751220642820,-490.0,0.00021917,2]
[368593187,1751220642830,-490.0,0.00021917,2]
[368593189,1751220642839,-500.0,0.00021917,2]
[368593191,1751220642848,-178.83762367,0.00021917,2]
[368593193,1751220642858,-490.0,0.00021917,2]
[368593195,1751220642867,-490.0,0.00021917,2]
[368593197,1751220642876,-929.05,0.00021917,2]
[368593199,1751220642885,-151.0,0.00021917,2]
[368593201,1751220642895,-151.0,0.00021917,2]
[368593203,1751220642904,-151.0,0.00021917,2]
[368593205,1751220642913,-151.0,0.00021917,2]
[368593207,1751220642923,-151.0,0.00021917,2]
[368593209,1751220642932,-499.57570899,0.00021917,2]
[368593211,1751220642942,-490.0,0.00021917,2]
[368593214,1751220642952,-151.0,0.00021917,2]
[368593216,1751220642962,-151.0,0.00021917,2]
[368593217,1751220642972,-1280.21,0.00021917,2]
[368593220,1751220642982,-490.0,0.00021917,2]
[368593221,1751220642991,-151.0,0.00021917,2]
[368593223,1751220643000,-573.58,0.00021917,2]
[368593225,1751220643010,-151.0,0.00021917,2]
[368593228,1751220643019,-151.0,0.00021917,2]
[368593230,1751220643028,-490.0,0.00021917,2]
[368593231,1751220643037,-720.0,0.00021917,2]
[368593233,1751220643046,-151.0,0.00021917,2]
[368593235,1751220643055,-490.0,0.00021917,2]
[368593237,1751220643064,-490.0,0.00021917,2]
[368593239,1751220643073,-151.0,0.00021917,2]
[368593241,1751220643083,-490.0,0.00021917,2]
[368593243,1751220643091,-151.0,0.00021917,2]
[368593245,1751220643101,-490.0,0.00021917,2]
[368593247,1751220643110,-151.0,0.00021917,2]
[368593249,1751220643120,-151.0,0.00021917,2]
[368593252,1751220643129,-490.0,0.00021917,2]
[368593254,1751220643140,-490.0,0.00021917,2]
[368593256,1751220643149,-387.58621687,0.00021917,2]
[368593258,1751220643159,-491.54726819,0.00021917,2]
[368593260,1751220643168,-490.0,0.00021917,2]
[368593262,1751220643178,-500.0,0.00021917,2]
[368593264,1751220643187,-500.0,0.00021917,2]
[368593266,1751220643196,-500.0,0.00021917,2]
[368593268,1751220643205,-500.0,0.00021917,2]
[368593270,1751220643214,-500.0,0.00021917,2]
[368593272,1751220643223,-524.65,0.00021917,2]
[368593274,1751220643232,-500.0,0.00021917,2]
[368593276,1751220643241,-500.0,0.00021917,2]
[368593278,1751220643250,-500.0,0.00021917,2]
[368593279,1751220643259,-438.8881471,0.00021917,2]
[368593282,1751220643269,-333.73758256,0.00021917,2]
[368593284,1751220643278,-587.42,0.00021917,2]
[368593286,1751220643287,-490.0,0.00021917,2]
[368593288,1751220643297,-490.0,0.00021917,2]
[368593289,1751220643306,-490.0,0.00021917,2]
[368593291,1751220643315,-490.0,0.00021917,2]
[368593293,1751220643324,-490.0,0.00021917,2]
[368593295,1751220643334,-490.0,0.00021917,2]
[368593297,1751220643343,-490.0,0.00021917,2]
[368593299,1751220643352,-490.0,0.00021917,2]
[368593301,1751220643361,-524.91,0.00021917,2]
[368593303,1751220643370,-151.0,0.00021917,2]
[368593305,1751220643379,-490.0,0.00021917,2]
[368593307,1751220643389,-490.0,0.00021917,2]
[368593309,1751220643398,-151.0,0.00021917,2]
[368593312,1751220643408,-151.0,0.00021917,2]
[368593314,1751220643418,-272.629999,0.00021917,2]
[368593316,1751220643427,-490.0,0.00021917,2]
[368593318,1751220643436,-161.138049,0.00021917,2]
[368593320,1751220643446,-272.629999,0.00021917,2]
[368593322,1751220643455,-272.629999,0.00021917,2]
[368593323,1751220643465,-272.629999,0.00021917,2]
[368593325,1751220643475,-490.0,0.00021917,2]
[368593327,1751220643484,-272.629999,0.00021917,2]
[368593329,1751220643493,-490.0,0.00021917,2]
[368593331,1751220643508,-272.629999,0.00021917,2]
[368593333,1751220643517,-272.629999,0.00021917,2]
[368593335,1751220643526,-272.629999,0.00021917,2]
[368593337,1751220643536,-888.82,0.00021917,2]
[368593339,1751220643547,-272.629999,0.00021917,2]
[368593341,1751220643556,-272.629999,0.00021917,2]
[368593343,1751220643565,-595.47523367,0.00021917,2]
[368593345,1751220643576,-490.0,0.00021917,2]
[368593347,1751220643586,-377.73420351,0.00021917,2]
[368593349,1751220643595,-490.0,0.00021917,2]
[368593351,1751220643604,-370.38077494,0.00021917,2]
[368593353,1751220643613,-2315.83,0.00021917,2]
[368593355,1751220643622,-217.01758081,0.00021917,2]
[368593357,1751220643633,-490.0,0.00021917,2]
[368593359,1751220643642,-490.0,0.00021917,2]
[368593361,1751220643651,-151.0,0.00021917,2]
[368593363,1751220643660,-151.0,0.00021917,2]
[368593365,1751220643669,-490.0,0.00021917,2]
[368593367,1751220643678,-836.92,0.00021917,2]
[368593369,1751220643687,-658.46,0.00021917,2]
[368593371,1751220643696,-714.79,0.00021917,2]
[368593373,1751220643705,-714.79,0.00021917,2]
[368593375,1751220643715,-714.79,0.00021917,2]
[368593377,1751220643724,-714.79,0.00021917,2]
[368593379,1751220643733,-714.79,0.00021917,2]
[368593381,1751220643742,-490.0,0.00021917,2]
[368593384,1751220643752,-714.79,0.00021917,2]
[368593386,1751220643762,-714.79,0.00021917,2]
[368593388,1751220643771,-714.79,0.00021917,2]
[368593390,1751220643780,-714.79,0.00021917,2]
[368593391,1751220643789,-1073.57,0.00021917,2]
[368593393,1751220643799,-1077.08,0.00021917,2]
[368593395,1751220643808,-490.0,0.00021917,2]
[368593397,1751220643818,-1779.0,0.00021917,2]
[368593399,1751220643829,-490.0,0.00021917,2]
[368593401,1751220643839,-490.0,0.00021917,2]
[368593403,1751220643848,-490.0,0.00021917,2]
[368593405,1751220643857,-490.0,0.00021917,2]
[368593407,1751220643866,-490.0,0.00021917,2]
[368593409,1751220643875,-490.0,0.00021917,2]
[368593411,1751220643884,-922.82,0.00021917,2]
[368593413,1751220643894,-490.0,0.00021917,2]
[368593415,1751220643904,-490.0,0.00021917,2]
[368593417,1751220643913,-490.0,0.00021917,2]
[368593419,1751220643923,-210.297307,0.00021917,2]
[368593421,1751220643932,-500.0,0.00021917,2]
[368593423,1751220643942,-500.0,0.00021917,2]
[368593425,1751220643951,-500.0,0.00021917,2]
[368593427,1751220643961,-500.0,0.00021917,2]
[368593429,1751220643970,-403.09483523,0.00021917,2]
[368593431,1751220643979,-490.0,0.00021917,2]
[368593433,1751220643988,-490.0,0.00021917,2]
[368593435,1751220643997,-490.0,0.00021917,2]
[368593437,1751220644006,-490.0,0.00021917,2]
[368593439,1751220644015,-490.0,0.00021917,2]
[368593441,1751220644024,-426.47928043,0.00021917,2]
[368593443,1751220644033,-490.0,0.00021917,2]
[368593445,1751220644042,-682.07,0.00021917,2]
[368593447,1751220644052,-490.0,0.00021917,2]
[368593449,1751220644061,-702.04,0.00021917,2]
[368593451,1751220644071,-490.0,0.00021917,2]
[368593453,1751220644080,-664.97,0.00021917,2]
[368593455,1751220644089,-154.789726,0.00021917,2]
[368593457,1751220644099,-1215.21,0.00021917,2]
[368593459,1751220644108,-490.0,0.00021917,2]
[368593461,1751220644118,-490.0,0.00021917,2]
[368593463,1751220644127,-490.0,0.00021917,2]
[368593465,1751220644138,-490.0,0.00021917,2]
[368593467,1751220644148,-151.978725,0.00021917,2]
[368593469,1751220644157,-607.89324229,0.00021917,2]
[368593471,1751220644166,-490.0,0.00021917,2]
[368593473,1751220644174,-1691.36,0.00021917,2]
[368593475,1751220644184,-1435.03,0.00021917,2]
[368593477,1751220644194,-490.0,0.00021917,2]
[368593479,1751220644203,-490.0,0.00021917,2]
[368593481,1751220644213,-1197.68,0.00021917,2]
[368593483,1751220644222,-490.0,0.00021917,2]
[368593485,1751220644233,-491.13,0.00021917,2]
[368593487,1751220644243,-2938.1,0.00021917,2]
[368593489,1751220644252,-151.0,0.00021917,2]
[368593491,1751220644262,-490.0,0.00021917,2]
[368593493,1751220644271,-490.0,0.00021917,2]
[368593495,1751220644280,-151.0,0.00021917,2]
[368593497,1751220644289,-151.0,0.00021917,2]
[368593499,1751220644298,-490.0,0.00021917,2]
[368593501,1751220644307,-490.0,0.00021917,2]
[368593502,1751220644316,-151.0,0.00021917,2]
[368593503,1751220644325,-526.57,0.00021917,2]
[368593504,1751220644334,-2021.36,0.00021917,2]
[368593505,1751220644343,-151.0,0.00021917,2]
[368593506,1751220644352,-151.0,0.00021917,2]
[368593507,1751220644361,-490.0,0.00021917,2]
[368593508,1751220644370,-1330.24,0.00021917,2]
[368593509,1751220644379,-490.0,0.00021917,2]
[368593510,1751220644388,-490.0,0.00021917,2]
[368593511,1751220644397,-557.54685091,0.00021917,2]
[368593512,1751220644406,-490.0,0.00021917,2]
[368593513,1751220644415,-3203.36,0.00021917,2]
[368593514,1751220644424,-490.0,0.00021917,2]
[368593515,1751220644433,-490.0,0.00021917,2]
[368593517,1751220644442,-153.196033,0.00021917,2]
[368593519,1751220644451,-490.0,0.00021917,2]
[368593521,1751220644461,-490.0,0.00021917,2]
[368593523,1751220644471,-490.0,0.00021917,2]
[368593525,1751220644481,-490.0,0.00021917,2]
[368593527,1751220644491,-490.0,0.00021917,2]
[368593529,1751220644504,-490.0,0.00021917,2]
[368593531,1751220644514,-490.0,0.00021917,2]
[368593533,1751220644523,-490.0,0.00021917,2]
[368593536,1751220644534,-490.0,0.00021917,2]
[368593538,1751220644544,-1352.96,0.00021917,2]
[368593540,1751220644555,-1144.26,0.00021917,2]
[368593542,1751220644564,-490.0,0.00021917,2]
[368593543,1751220644576,-490.0,0.00021917,2]
[368593573,1751220644842,-490.0,0.00021917,2]
[368593575,1751220644853,-490.0,0.00021917,2]
[368593577,1751220644863,-151.0,0.00021917,2]
[368593579,1751220644873,-490.0,0.00021917,2]
[368593581,1751220644883,-151.0,0.00021917,2]
[368593583,1751220644892,-151.0,0.00021917,2]
[368593585,1751220644902,-151.0,0.00021917,2]
[368593587,1751220644911,-490.0,0.00021917,2]
[368593589,1751220644921,-575.48,0.00021917,2]
[368593591,1751220644930,-151.0,0.00021917,2]
[368593593,1751220644939,-490.0,0.00021917,2]
[368593595,1751220644951,-941.74,0.00021917,2]
[368593597,1751220644961,-151.0,0.00021917,2]
[368593599,1751220644970,-151.0,0.00021917,2]
[368593601,1751220644980,-490.0,0.00021917,2]
[368593603,1751220644989,-490.0,0.00021917,2]
[368593605,1751220644999,-490.0,0.00021917,2]
[368593607,1751220645009,-151.0,0.00021917,2]
[368593609,1751220645019,-246.55001,0.00021917,2]
[368593611,1751220645029,-365.23734796,0.00021917,2]
[368593613,1751220645039,-490.0,0.00021917,2]
[368593615,1751220645049,-610.27870533,0.00021917,2]
[368593617,1751220645060,-490.0,0.00021917,2]
[368593619,1751220645070,-591.96,0.00021917,2]
[368593622,1751220645080,-490.0,0.00021917,2]
[368593624,1751220645090,-490.0,0.00021917,2]
[368593626,1751220645100,-2411.79,0.00021917,2]
[368593628,1751220645110,-490.0,0.00021917,2]
[368593630,1751220645119,-490.0,0.00021917,2]
[368593632,1751220645129,-490.0,0.00021917,2]
[368593634,1751220645138,-550.65,0.00021917,2]
[368593636,1751220645149,-686.82,0.00021917,2]
[368593638,1751220645158,-686.96,0.00021917,2]
[368593640,1751220645167,-490.0,0.00021917,2]
[368593642,1751220645177,-1249.46,0.00021917,2]
[368593644,1751220645186,-490.0,0.00021917,2]
[368593646,1751220645196,-490.0,0.00021917,2]
[368593648,1751220645205,-490.0,0.00021917,2]
[368593650,1751220645215,-500.0,0.00021917,2]
[368593652,1751220645224,-490.0,0.00021917,2]
[368593654,1751220645233,-500.0,0.00021917,2]
[368593656,1751220645242,-490.0,0.00021917,2]
[368593658,1751220645252,-851.86,0.00021917,2]
[368593660,1751220645261,-490.0,0.00021917,2]
[368593662,1751220645270,-522.59,0.00021917,2]
[368593664,1751220645279,-490.0,0.00021917,2]